fUSD/lending_fUSD_20260127
["ID","MTS","AMOUNT","RATE_DAILY","PERIOD"]
[403713755,1769501444527,-500.0,0.00021973,2]
[403713756,1769501444536,-500.0,0.00021973,2]
[403713757,1769501444546,-500.0,0.00021973,2]
[403713758,1769501444556,-500.0,0.00021973,2]
[403713759,1769501444566,-500.0,0.00021973,2]
[403713760,1769501444575,-500.0,0.00021973,2]
[403713761,1769501444586,-500.0,0.00021973,2]
[403713762,1769501444597,-500.0,0.00021973,2]
[403713763,1769501444606,-500.0,0.00021973,2]
[403713764,1769501444616,-500.0,0.00021973,2]
[403713765,1769501444626,-500.0,0.00021973,2]
[403713766,1769501444636,-500.0,0.00021973,2]
[403713767,1769501444646,-500.0,0.00021973,2]
[403713768,1769501444656,-500.0,0.00021973,2]
[403713769,1769501444665,-500.0,0.00021973,2]
[403713770,1769501444676,-500.0,0.00021973,2]
[403713771,1769501444685,-518.07530174,0.00021973,2]
[403713772,1769501444695,-500.0,0.00021973,2]
[403713773,1769501444709,-500.0,0.00021973,2]
[403713774,1769501444719,-500.0,0.00021973,2]
[403713775,1769501444729,-505.86407917,0.00021973,2]
[403713776,1769501444739,-500.0,0.00021973,2]
[403713777,1769501444750,-500.0,0.00021973,2]
[403713778,1769501444760,-500.0,0.00021973,2]
[403713779,1769501444770,-500.0,0.00021973,2]
[403713780,1769501444780,-159.98070948,0.00021973,2]
[403713781,1769501444789,-515.88206341,0.00021973,2]
[403713782,1769501444799,-500.0,0.00021973,2]
[403713783,1769501444808,-500.0,0.00021973,2]
[403713784,1769501444818,-500.0,0.00021973,2]
[403713785,1769501444828,-500.0,0.00021973,2]
[403713786,1769501444839,-500.0,0.00021973,2]
[403713787,1769501444849,-751.0,0.00021989,2]
[403713788,1769501444859,-3002.94584461,0.00022,2]
[403713789,1769501444868,-455.11,0.00022,2]
[403713790,1769501444878,-798.67506692,0.00022,7]
[403713791,1769501444887,-1718.86,0.00022,7]
[403713792,1769501444898,-503.0,0.00022,5]
[403713793,1769501444908,-999.28421377,0.00022031,2]
[403713794,1769501444917,-1333.0,0.00022084,2]
[403713795,1769501444927,-1287.961,0.00022084,2]
[403713796,1769501444936,-303.251,0.00022084,2]
[403713797,1769501444947,-916.0,0.000221,2]
[403713798,1769501444957,-1204.0,0.000221,2]
[403713799,1769501444967,-567.0,0.00022102,2]
[403713800,1769501444976,-2442.0,0.00022102,2]
[403713801,1769501444986,-4831.0,0.00022102,2]
[403713802,1769501444995,-1102.0,0.00022155,2]
[403713803,1769501445005,-2831.0,0.0002226,2]
[403713804,1769501445014,-2831.0,0.00022306,2]
[403713805,1769501445023,-150.00298921,0.00022325,17]
[403713806,1769501445033,-200.0,0.00022431,2]
[403713807,1769501445044,-200.0,0.00022436,2]
[403713808,1769501445054,-490.5,0.00022558,10]
[403713809,1769501445064,-373.07297731,0.00022575,2]
[403713810,1769501445073,-557.45530804,0.00022577,2]
[403713811,1769501445083,-503.0,0.00022667,6]
[403713812,1769501445093,-590.91,0.00022927,2]
[403713813,1769501445103,-636.50124839,0.00023,7]
[403713814,1769501445112,-1102.0,0.00023321,2]
[403713815,1769501445125,-503.0,0.00023333,6]
[403713816,1769501445134,-2000.0,0.000234,2]
[403713817,1769501445144,-2831.0,0.0002351,3]
[403713818,1769501445154,-5157.21,0.00023533,2]
[403713819,1769501445163,-1000.0,0.00023542,2]
[403713820,1769501445173,-1718.86,0.000236,7]
[403713821,1769501445182,-1008.1,0.00023608,2]
[403713822,1769501445191,-150.0,0.00023692,2]
[403713823,1769501445201,-150.0,0.00023692,2]
[403713824,1769501445211,-200.0,0.00023692,2]
[403713825,1769501445221,-272.463,0.00023692,2]
[403713826,1769501445232,-150.16,0.00023692,2]
[403713827,1769501445241,-171.154,0.00023692,2]
[403713828,1769501445250,-250.928,0.00023692,2]
[403713829,1769501445260,-150.0,0.00023692,2]
[403713830,1769501445270,-150.0,0.00023692,2]
[403713831,1769501445280,-1408.0,0.00023692,2]
[403713832,1769501445290,-621.488,0.00023692,2]
[403713833,1769501445299,-150.00298921,0.00023693,21]
[403713834,1769501445308,-6260.3368095,0.00023792,2]
[403713835,1769501445318,-194.5782485,0.00023792,2]
[403713836,1769501445327,-3580.1360884,0.00023796,2]
[403713837,1769501445336,-2831.0,0.00023797,3]
[403713838,1769501445345,-386.87667747,0.00023944,2]
[403713839,1769501445355,-455.11,0.00024,2]
[403713840,1769501445365,-503.0,0.00024,7]
[403713841,1769501445374,-520.07,0.00024225,30]
[403713842,1769501445383,-1102.0,0.00024548,2]
[403713843,1769501445392,-1000.0,0.00024658,2]
[403713844,1769501445401,-151.0,0.00024658,2]
[403713845,1769501445411,-151.0,0.00024658,2]
[403713846,1769501445421,-151.0,0.00024658,2]
[403713847,1769501445430,-151.0,0.00024658,2]
[403713848,1769501445439,-150.0,0.00024658,2]
[403713849,1769501445449,-503.0,0.00024667,8]
[403713850,1769501445458,-2831.0,0.0002476,3]
[403713851,1769501445467,-151.0,0.000249,7]
[403713852,1769501445476,-151.0,0.000249,7]
[403713853,1769501445485,-151.0,0.000249,7]
[403713854,1769501445496,-371.178532,0.000249,7]
[403713855,1769501445505,-371.178532,0.000249,7]
[403713856,1769501445515,-371.178532,0.000249,7]
[403713857,1769501445524,-371.178532,0.000249,7]
[403713858,1769501445533,-151.0,0.000249,7]
[403713859,1769501445542,-151.0,0.000249,7]
[403713860,1769501445552,-606166.348628,0.000249,3]
[403713861,1769501445562,-1122.410456,0.000249,7]
[403713862,1769501445571,-1122.410456,0.000249,7]
[403713863,1769501445581,-1122.410456,0.000249,7]
[403713864,1769501445590,-1122.410456,0.000249,7]
[403713865,1769501445599,-320.299996,0.000249,7]
[403713866,1769501445608,-320.299996,0.000249,7]
[403713867,1769501445619,-320.299996,0.000249,7]
[403713868,1769501445628,-320.299996,0.000249,7]
[403713869,1769501445637,-151.0,0.000249,7]
[403713870,1769501445647,-1312.856495,0.000249,7]
[403713871,1769501445656,-1312.856495,0.000249,7]
[403713872,1769501445665,-1312.856495,0.000249,7]
[403713873,1769501445674,-1312.856495,0.000249,7]
[403713874,1769501445684,-190.8,0.00025,2]
[403713875,1769501445694,-150.00298921,0.00025062,26]
[403713876,1769501445707,-2831.0,0.00025077,3]
[403713877,1769501445716,-1333.0,0.00025084,2]
[403713878,1769501445725,-1269.0,0.00025084,2]
[403713879,1769501445734,-184.0,0.00025084,2]
[403713880,1769501445744,-916.0,0.000251,2]
[403713881,1769501445753,-1203.53,0.000251,2]
[403713882,1769501445762,-567.0,0.00025102,2]
[403713883,1769501445772,-2442.0,0.00025102,2]
[403713884,1769501445782,-4831.0,0.00025102,2]
[403713885,1769501445793,-401.19111454,0.00025313,2]
[403713886,1769501445804,-503.0,0.00025333,8]
[403713887,1769501445813,-1008.1,0.00025545,2]
[403713888,1769501445823,-1718.86,0.000256,7]
[403713889,1769501445833,-1102.0,0.0002584,2]
[403713890,1769501445842,-455.11,0.000259,2]
[403713891,1769501445852,-503.0,0.00026,9]
[403713892,1769501445861,-150.00298921,0.00026431,30]
[403713893,1769501445870,-503.0,0.00026667,10]
[403713894,1769501445879,-422.55009527,0.00026682,2]
[403713895,1769501445888,-150.0,0.00026692,2]
[403713896,1769501445898,-150.0,0.00026692,2]
[403713897,1769501445907,-150.0,0.00026692,2]
[403713898,1769501445916,-150.0,0.00026692,2]
[403713899,1769501445926,-150.0,0.00026692,2]
[403713900,1769501445935,-1071.782,0.00026692,2]
[403713901,1769501445945,-615.0,0.00026692,2]
[403713902,1769501445956,-300.0,0.00027,120]
[403713903,1769501445966,-7529.95825798,0.00027,2]
[403713904,1769501445975,-216.0,0.00027,7]
[403713905,1769501445985,-169.0,0.00027,7]
[403713906,1769501445994,-2000.0,0.000271,2]
[403713907,1769501446004,-150.0,0.00027123,2]
[403713908,1769501446014,-1102.0,0.000272,2]
[403713909,1769501446024,-533.0,0.00027201,2]
[403713910,1769501446034,-500.0,0.00027201,2]
[403713911,1769501446045,-500.0,0.00027201,2]
[403713912,1769501446055,-500.0,0.00027201,2]
[403713913,1769501446065,-500.0,0.00027201,2]
[403713914,1769501446074,-500.0,0.00027201,2]
[403713915,1769501446083,-500.0,0.00027201,2]
[403713916,1769501446093,-500.0,0.00027201,2]
[403713917,1769501446102,-500.0,0.00027201,2]
[403713918,1769501446111,-500.0,0.00027201,2]
[403713919,1769501446120,-500.0,0.00027201,2]
[403713920,1769501446130,-500.0,0.00027201,2]
[403713921,1769501446139,-500.0,0.00027201,2]
[403713922,1769501446148,-500.0,0.00027201,2]
[403713923,1769501446157,-500.0,0.00027201,2]
[403713924,1769501446167,-500.0,0.00027201,2]
[403713926,1769501446176,-500.0,0.00027201,2]
[403713927,1769501446185,-500.0,0.00027201,2]
[403713928,1769501446194,-500.0,0.00027201,2]
[403713929,1769501446203,-500.0,0.00027201,2]
[403713930,1769501446213,-500.0,0.00027201,2]
[403713931,1769501446222,-500.0,0.00027201,2]
[403713932,1769501446231,-500.0,0.00027201,2]
[403713933,1769501446240,-500.0,0.00027201,2]
[403713934,1769501446249,-500.0,0.00027201,2]
[403713935,1769501446258,-500.0,0.00027201,2]
[403713936,1769501446267,-500.0,0.00027201,2]
[403713937,1769501446276,-500.0,0.00027201,2]
[403713938,1769501446284,-500.0,0.00027201,2]
[403713939,1769501446293,-500.0,0.00027201,2]
[403713940,1769501446303,-500.0,0.00027201,2]
[403713941,1769501446312,-500.0,0.00027201,2]
[403713942,1769501446320,-500.0,0.00027201,2]
[403713943,1769501446329,-799.0,0.00027201,2]
[403713944,1769501446339,-503.0,0.00027333,10]
[403713945,1769501446348,-150.0,0.00027369,2]
[403713946,1769501446357,-582.18073396,0.0002737,2]
[403713947,1769501446366,-300.0,0.00027397,2]
[403713948,1769501446375,-500.0,0.00027397,30]
[403713949,1769501446384,-151.0,0.00027397,7]
[403713950,1769501446394,-151.0,0.00027397,7]
[403713951,1769501446404,-151.0,0.00027397,7]
[403713952,1769501446413,-151.0,0.00027397,7]
[403713953,1769501446423,-151.0,0.00027397,7]
[403713954,1769501446433,-151.0,0.00027397,7]
[403713955,1769501446443,-243.257104,0.00027397,7]
[403713956,1769501446455,-151.0,0.00027397,7]
[403713957,1769501446464,-151.0,0.00027397,7]
[403713958,1769501446474,-151.0,0.00027397,7]
[403713959,1769501446483,-151.0,0.00027397,7]
[403713960,1769501446495,-151.0,0.00027397,7]
[403713961,1769501446505,-152.758166,0.00027397,7]
[403713962,1769501446515,-152.758166,0.00027397,7]
[403713963,1769501446524,-152.758166,0.00027397,7]
[403713964,1769501446534,-152.758166,0.00027397,7]
[403713965,1769501446543,-152.758166,0.00027397,7]
[403713966,1769501446552,-152.758166,0.00027397,7]
[403713967,1769501446561,-152.758166,0.00027397,7]
[403713968,1769501446571,-152.758166,0.00027397,7]
[403713969,1769501446580,-152.758166,0.00027397,7]
[403713970,1769501446590,-152.758166,0.00027397,7]
[403713971,1769501446599,-152.758166,0.00027397,7]
[403713972,1769501446610,-152.758166,0.00027397,7]
[403713973,1769501446619,-152.758166,0.00027397,7]
[403713974,1769501446628,-152.758166,0.00027397,7]
[403713975,1769501446637,-152.758166,0.00027397,7]
[403713976,1769501446646,-152.758166,0.00027397,7]
[403713977,1769501446656,-184.58,0.00027397,10]
[403713978,1769501446665,-455.11,0.000274,2]
[403713979,1769501446677,-1008.1,0.00027482,2]
[403713980,1769501446687,-2831.0,0.0002758,3]
[403713981,1769501446696,-150.00298921,0.000278,34]
[403713982,1769501446709,-500.0,0.00028,120]
[403713983,1769501446719,-1718.86,0.00028,7]
[403713984,1769501446728,-293.0,0.00028,2]
[403713986,1769501446737,-503.0,0.00028,11]
[403713987,1769501446746,-1333.0,0.00028084,2]
[403713988,1769501446755,-1269.0,0.00028084,2]
[403713989,1769501446765,-184.0,0.00028084,2]
[403713990,1769501446775,-916.0,0.000281,2]
[403713992,1769501446784,-265.052,0.00028102,2]
[403713993,1769501446793,-2442.0,0.00028102,2]
[403713994,1769501446802,-4831.0,0.00028102,2]
[403713995,1769501446811,-1102.0,0.00028561,5]
[403713996,1769501446820,-503.0,0.00028667,11]
[403713997,1769501446830,-216.0,0.00028767,14]
[403713999,1769501446839,-920.12,0.000291,14]
[403714000,1769501446848,-150.00298921,0.00029168,38]
[403714001,1769501446857,-520.07,0.00029272,30]
[403714002,1769501446866,-503.0,0.00029333,12]
[403714003,1769501446875,-1008.1,0.00029419,2]
[403714004,1769501446885,-2831.0,0.0002947,3]
[403714005,1769501446894,-150.0,0.00029589,2]
[403714006,1769501446903,-150.0,0.00029692,2]
[403714007,1769501446912,-615.0,0.00029692,2]
[403714008,1769501446921,-162.0,0.000298,30]
[403714009,1769501446930,-162.0,0.000298,30]
[403714010,1769501446939,-1102.0,0.00029989,5]
[403714011,1769501446951,-500.0,0.0003,120]
[403714012,1769501446961,-17380.05828467,0.0003,7]
[403714013,1769501446970,-150.0,0.0003,2]
[403714014,1769501446982,-503.0,0.0003,13]
[403714015,1769501446992,-873.27110093,0.0003011,30]
[403714016,1769501447002,-169.39,0.000302,30]
[403714017,1769501447011,-1718.86,0.000302,7]
[403714018,1769501447020,-195.99,0.00030411,120]
[403714019,1769501447031,-150.00298921,0.00030537,42]
[403714020,1769501447040,-825.38232317,0.00030592,2]
[403714021,1769501447050,-503.0,0.00030667,13]
[403714022,1769501447059,-2000.0,0.000308,2]
[403714023,1769501447068,-210.0,0.0003084,30]
[403714024,1769501447078,-161.0,0.00031,60]
[403714025,1769501447087,-162.67,0.00031,60]
[403714026,1769501447096,-150.0,0.00031,2]
[403714027,1769501447105,-1333.0,0.00031084,2]
[403714028,1769501447115,-184.0,0.00031084,2]
[403714029,1769501447124,-916.0,0.000311,2]
[403714030,1769501447133,-2442.0,0.00031102,2]
[403714031,1769501447142,-4831.0,0.00031102,2]
[403714032,1769501447152,-11985.0,0.00031234,2]
[403714033,1769501447161,-2831.0,0.00031261,3]
[403714034,1769501447170,-503.0,0.00031333,14]
[403714035,1769501447180,-1008.1,0.00031356,2]
[403714036,1769501447190,-300.0,0.000314,120]
[403714037,1769501447200,-1102.0,0.00031488,5]
[403714038,1769501447210,-11985.0,0.00031556,2]
[403714039,1769501447219,-154.25,0.00031644,91]
[403714040,1769501447228,-11985.0,0.00031878,2]
[403714041,1769501447239,-150.00298921,0.00031906,46]
[403714042,1769501447248,-299.99,0.00032,30]
[403714043,1769501447259,-500.0,0.00032,120]
[403714044,1769501447269,-503.0,0.00032,15]
[403714045,1769501447280,-500.0,0.00032027,2]
[403714046,1769501447290,-150.0,0.00032055,2]
[403714047,1769501447299,-1718.86,0.000322,7]
[403714048,1769501447309,-11985.0,0.000322,2]
[403714049,1769501447319,-1000.0,0.00032329,7]
[403714050,1769501447328,-34025.0,0.00032463,7]
[403714051,1769501447338,-11985.0,0.00032522,2]
[403714052,1769501447348,-1000.0,0.00032603,7]
[403714053,1769501447358,-503.0,0.00032667,15]
[403714054,1769501447367,-615.0,0.00032692,2]
[403714055,1769501447376,-11985.0,0.00032844,2]
[403714056,1769501447385,-1455.45183489,0.00032849,120]
[403714057,1769501447395,-210.0,0.0003286,30]
[403714058,1769501447406,-1000.0,0.00032877,7]
[403714059,1769501447415,-344.46,0.00032877,2]
[403714060,1769501447424,-556.57151572,0.00032877,5]
[403714061,1769501447433,-169.39,0.000329,30]
[403714062,1769501447442,-2018.57,0.000329,2]
[403714063,1769501447451,-613.23,0.00032965,2]
[403714064,1769501447460,-613.23,0.00032965,2]
[403714065,1769501447470,-613.23,0.00032965,2]
[403714066,1769501447479,-613.23,0.00032965,2]
[403714067,1769501447488,-613.23,0.00032965,2]
[403714068,1769501447497,-1225.1,0.00032965,2]
[403714069,1769501447507,-613.23,0.00032965,2]
[403714070,1769501447516,-613.23,0.00032965,2]
[403714071,1769501447525,-613.23,0.00032965,2]
[403714072,1769501447534,-613.23,0.00032965,2]
[403714073,1769501447543,-1414.41,0.00033,14]
[403714074,1769501447552,-853.2,0.00033,14]
[403714075,1769501447561,-300.0,0.00033,120]
[403714076,1769501447571,-150.0,0.00033,14]
[403714077,1769501447580,-1102.0,0.00033062,5]
[403714078,1769501447589,-455.11,0.000331,2]
[403714079,1769501447598,-1000.0,0.00033151,7]
[403714080,1769501447607,-11985.0,0.00033166,2]
[403714081,1769501447616,-150.00298921,0.00033274,49]
[403714082,1769501447627,-1008.1,0.00033293,5]
[403714083,1769501447636,-503.0,0.00033333,16]
[403714084,1769501447645,-1000.0,0.00033425,7]
[403714085,1769501447655,-1000.0,0.00033699,7]
[403714086,1769501447665,-2018.57,0.000337,2]
[403714087,1769501447674,-613.23,0.00033892,2]
[403714088,1769501447683,-613.23,0.00033892,2]
[403714089,1769501447692,-613.23,0.00033892,2]
[403714090,1769501447708,-613.23,0.00033892,2]
[403714091,1769501447717,-613.23,0.00033892,2]
[403714092,1769501447726,-744.25254561,0.00033939,60]
[403714093,1769501447737,-1000.0,0.00033973,7]
[403714094,1769501447747,-355.58969192,0.00034,30]
[403714095,1769501447756,-500.0,0.00034,120]
[403714096,1769501447766,-503.0,0.00034,16]
[403714097,1769501447776,-1333.0,0.00034084,2]
[403714098,1769501447786,-916.0,0.000341,2]
[403714099,1769501447796,-2442.0,0.00034102,2]
[403714100,1769501447806,-4831.0,0.00034102,2]
[403714101,1769501447817,-159.07884473,0.000342,2]
[403714102,1769501447827,-1000.0,0.00034247,7]
[403714103,1769501447836,-1718.86,0.000343,14]
[403714104,1769501447848,-520.07,0.00034319,30]
[403714105,1769501447858,-2000.0,0.000345,2]
[403714106,1769501447867,-1000.0,0.00034521,7]
[403714107,1769501447876,-150.0,0.00034521,2]
[403714108,1769501447886,-150.00298939,0.00034643,53]
[403714109,1769501447895,-503.0,0.00034667,17]
[403714110,1769501447904,-1102.0,0.00034715,5]
[403714111,1769501447913,-1000.0,0.00034795,7]
[403714112,1769501447923,-2018.57,0.000348,2]
[403714113,1769501447932,-210.0,0.0003488,30]
[403714114,1769501447941,-558.94,0.00034883,2]
[403714115,1769501447951,-300.0,0.00034883,2]
[403714116,1769501447960,-200.0,0.00034936,2]
[403714117,1769501447970,-200.0,0.00034937,2]
[403714118,1769501447979,-200.0,0.00034937,2]
[403714119,1769501447988,-200.0,0.00034942,2]
[403714120,1769501447997,-200.0,0.00034942,2]
[403714121,1769501448007,-200.0,0.00034942,2]
[403714122,1769501448016,-200.0,0.00034942,2]
[403714123,1769501448025,-200.0,0.00034942,2]
[403714124,1769501448034,-200.0,0.00034943,2]
[403714125,1769501448044,-300.0,0.00035,120]
[403714126,1769501448053,-161.0,0.00035,120]
[403714127,1769501448063,-806.01509448,0.00035,3]
[403714128,1769501448077,-1000.0,0.00035068,7]
[403714129,1769501448088,-1008.1,0.00035231,7]
[403714130,1769501448097,-455.11,0.000353,2]
[403714131,1769501448107,-5157.21,0.00035314,2]
[403714132,1769501448116,-503.0,0.00035333,18]
[403714133,1769501448125,-1000.0,0.00035342,7]
[403714134,1769501448135,-1000.0,0.00035616,7]
[403714135,1769501448144,-600.0,0.00035616,2]
[403714136,1769501448153,-460.63121432,0.00035616,2]
[403714137,1769501448162,-615.0,0.00035692,2]
[403714138,1769501448172,-1414.41,0.000357,14]
[403714139,1769501448181,-853.2,0.000357,14]
[403714140,1769501448191,-2018.57,0.000357,2]
[403714141,1769501448201,-484.83,0.0003581,2]
[403714142,1769501448210,-484.83,0.0003581,2]
[403714143,1769501448219,-484.83,0.0003581,2]
[403714144,1769501448232,-484.83,0.0003581,2]
[403714145,1769501448242,-484.83,0.0003581,2]
[403714146,1769501448251,-484.83,0.0003581,2]
[403714147,1769501448261,-484.83,0.0003581,2]
[403714148,1769501448270,-484.83,0.0003581,2]
[403714149,1769501448280,-484.83,0.0003581,2]
[403714150,1769501448289,-484.83,0.0003581,2]
[403714151,1769501448299,-484.83,0.0003581,2]
[403714152,1769501448308,-484.83,0.0003581,2]
[403714153,1769501448550,-484.83,0.0003581,2]
[403714154,1769501448561,-484.83,0.0003581,2]
[403714155,1769501448571,-484.83,0.0003581,2]
[403714156,1769501448581,-484.83,0.0003581,2]
[403714157,1769501448590,-484.83,0.0003581,2]
[403714158,1769501448600,-484.83,0.0003581,2]
[403714159,1769501448609,-484.83,0.0003581,2]
[403714160,1769501448618,-1000.0,0.0003589,14]
[403714161,1769501448628,-522.78,0.00036,30]
[403714162,1769501448637,-300.0,0.00036,120]
[403714163,1769501448647,-503.0,0.00036,18]
[403714164,1769501448656,-173.40430254,0.00036012,57]
[403714165,1769501448665,-1000.0,0.00036164,14]
[403714166,1769501448675,-600.0,0.00036164,2]
[403714167,1769501448685,-1000.0,0.00036438,14]
[403714168,1769501448695,-1102.0,0.00036451,5]
[403714169,1769501448709,-2463.2,0.00036488,2]
[403714170,1769501448719,-150.0,0.00036488,2]
[403714171,1769501448737,-1418.22,0.00036495,2]
[403714172,1769501448747,-1117.98,0.00036495,2]
[403714173,1769501448757,-559.04,0.00036495,2]
[403714174,1769501448767,-559.04,0.00036495,2]
[403714175,1769501448780,-172.27,0.00036495,2]
[403714176,1769501448790,-172.27,0.00036495,2]
[403714177,1769501448800,-172.27,0.00036495,2]
[403714178,1769501448810,-171.94,0.00036495,2]
[403714179,1769501448820,-1718.86,0.000365,14]
[403714180,1769501448830,-559.04,0.00036501,2]
[403714181,1769501448841,-150.22,0.00036501,2]
[403714182,1769501448852,-936.78,0.00036501,2]
[403714183,1769501448862,-150.0,0.00036501,2]
[403714184,1769501448872,-559.04,0.00036501,2]
[403714185,1769501448882,-150.0,0.00036501,2]
[403714186,1769501448892,-150.0,0.00036501,2]
[403714187,1769501448901,-150.0,0.00036501,2]
[403714188,1769501448911,-150.0,0.00036501,2]
[403714189,1769501448920,-172.27,0.00036501,2]
[403714190,1769501448929,-150.0,0.00036501,2]
[403714191,1769501448940,-388.33,0.00036501,2]
[403714192,1769501448949,-150.0,0.00036501,2]
[403714193,1769501448959,-503.0,0.00036667,19]
[403714194,1769501448968,-1000.0,0.00036712,14]
[403714195,1769501448977,-600.0,0.00036712,2]
[403714196,1769501448986,-969.56,0.00036762,2]
[403714197,1769501448997,-484.83,0.00036769,2]
[403714198,1769501449006,-484.52,0.00036769,2]
[403714199,1769501449015,-210.0,0.0003689,30]
[403714200,1769501449025,-709.12981502,0.0003691,2]
[403714201,1769501449034,-1000.0,0.00036986,14]
[403714202,1769501449043,-150.0,0.00036986,2]
[403714203,1769501449053,-1414.41,0.00037,14]
[403714204,1769501449062,-853.2,0.00037,14]
[403714205,1769501449072,-300.0,0.00037,120]
[403714206,1769501449081,-766.77,0.00037,30]
[403714207,1769501449092,-13692.08131917,0.00037,4]
[403714208,1769501449107,-1333.0,0.00037084,2]
[403714209,1769501449116,-916.0,0.000371,2]
[403714210,1769501449126,-2442.0,0.00037102,2]
[403714211,1769501449136,-580.684,0.00037102,2]
[403714212,1769501449146,-1008.1,0.00037168,30]
[403714213,1769501449156,-232.49587384,0.00037212,120]
[403714214,1769501449166,-1000.0,0.0003726,14]
[403714215,1769501449175,-600.0,0.0003726,2]
[403714216,1769501449184,-164.43363997,0.00037268,2]
[403714217,1769501449194,-937.06,0.00037309,2]
[403714218,1769501449203,-503.0,0.00037333,20]
[403714219,1769501449213,-173.40430254,0.00037381,61]
[403714220,1769501449223,-151.57,0.00037425,2]
[403714221,1769501449233,-150.0,0.00037425,2]
[403714222,1769501449242,-150.0,0.00037425,2]
[403714223,1769501449252,-500.0,0.00037482,14]
[403714224,1769501449263,-200.0,0.000375,120]
[403714225,1769501449273,-1999.0,0.00037534,14]
[403714226,1769501449283,-455.11,0.000376,2]
[403714227,1769501449292,-500.0,0.00037756,14]
[403714228,1769501449303,-800.0,0.00037756,14]
[403714229,1769501449312,-1000.0,0.00037808,14]
[403714230,1769501449322,-600.0,0.00037808,2]
[403714231,1769501449332,-500.0,0.000379,13]
[403714232,1769501449341,-200.0,0.00038,120]
[403714233,1769501449351,-250.0,0.00038,45]
[403714234,1769501449360,-250.0,0.00038,45]
[403714235,1769501449370,-250.0,0.00038,45]
[403714236,1769501449379,-250.0,0.00038,45]
[403714237,1769501449389,-300.0,0.00038,120]
[403714238,1769501449398,-250.0,0.00038,45]
[403714239,1769501449407,-503.0,0.00038,20]
[403714240,1769501449417,-1000.0,0.00038082,14]
[403714241,1769501449426,-2000.0,0.000382,2]
[403714242,1769501449436,-1102.0,0.00038274,5]
[403714243,1769501449446,-500.0,0.00038304,14]
[403714244,1769501449456,-151.0,0.00038356,120]
[403714245,1769501449465,-151.0,0.00038356,120]
[403714246,1769501449475,-151.0,0.00038356,120]
[403714247,1769501449485,-151.0,0.00038356,120]
[403714248,1769501449495,-206.24322,0.00038356,120]
[403714249,1769501449504,-371.178532,0.00038356,120]
[403714250,1769501449514,-371.178532,0.00038356,120]
[403714251,1769501449524,-371.178532,0.00038356,120]
[403714252,1769501449534,-371.178542,0.00038356,120]
[403714253,1769501449543,-151.0,0.00038356,120]
[403714254,1769501449552,-151.0,0.00038356,120]
[403714255,1769501449562,-151.0,0.00038356,120]
[403714256,1769501449571,-152.758166,0.00038356,120]
[403714257,1769501449580,-152.758166,0.00038356,120]
[403714258,1769501449590,-152.758166,0.00038356,120]